[Event "Karel Janecek Open 2024"]
[Site "Prague"]
[Date "2024.03.04"]
[Round "6.2"]
[White "Zhao, Yuanhe"]
[Black "Kourkoulos-Arditis, Stamatis"]
[Result "0-1"]
[ECO "D02"]
[WhiteElo "2461"]
[BlackElo "2547"]
[Annotator "RC"]
[PlyCount "136"]
[EventDate "2024.02.22"]
[EventType "swiss"]
[EventCountry "CZE"]
[SourceTitle "playchess.com"]
[Source "ChessBase"]
[SourceQuality "1"]
[TimeControl "40/5400+30:1800+30"]

1. Nf3 {[%emt 0:00:11]} d5 {[%emt 0:00:16]} 2. d4 {[%emt 0:03:44]} e6 {[%emt 0:00:20]} 3. g3 {[%emt 0:01:49]} b6 {[%emt 0:05:17]} 4. Bg2 {[%emt 0:00:43]} Bb7 {[%emt 0:00:12]} 5. O-O {[%emt 0:00:24]} Nd7 {[%emt 0:00:11]} 6. c4 {[%emt 0:00:45]} dxc4 {[%emt 0:00:23]} 7. Qa4 {[%emt 0:04:24]} a6 {[%emt 0:03:12]} 8. Qxc4 {[%emt 0:00:24]} Ngf6 {[%emt 0:01:15]} 9. Bg5 {[%emt 0:08:42]} c5 {[%emt 0:06:00]} 10. dxc5 {[%emt 0:02:31]} Bxc5 {[%emt 0:00:27]} 11. Rd1 {[%emt 0:01:42]} b5 {[%emt 0:24:42]} 12. Qh4 {[%emt 0:09:15]} Qb6 {[%emt 0:00:32]} 13. e3 {[%emt 0:00:07]} h6 {[%emt 0:02:01]} 14. Bxf6 {[%emt 0:11:11]} Nxf6 {[%emt 0:00:08]} 15. Nbd2 {[%emt 0:00:33]} O-O {[%emt 0:09:41]} 16. Nf1 {[%emt 0:06:48]} Rfd8 {[%emt 0:01:10]} 17. Rac1 {[%emt 0:03:08]} Be7 {[%emt 0:00:50]} 18. Qf4 {[%emt 0:09:38]} Rxd1 {[%emt 0:08:50]} 19. Rxd1 {[%emt 0:00:08]} Rc8 {[%emt 0:01:59]} 20. Qd4 {[%emt 0:06:45]} Qc7 {[%emt 0:03:31]} 21. Qd2 {[%emt 0:02:48]} b4 {[%emt 0:05:29]} 22. Nd4 {[%emt 0:12:18]} Bxg2 {[%emt 0:00:37]} 23. Kxg2 {[%emt 0:00:04]} Qa5 {[%emt 0:00:36]} 24. Ra1 {[%emt 0:05:27]} Qd5+ {[%emt 0:05:56]} 25. Kg1 {[%emt 0:00:11]} g6 {[%emt 0:09:50]} 26. Qe2 {[%emt 0:00:54]} a5 {[%emt 0:00:07]} 27. h4 {[%emt 0:04:31]} h5 {[%emt 0:01:27]} 28. a3 {[%emt 0:02:05]} b3 {[%emt 0:03:00]} 29. Rd1 {[%emt 0:00:23]} a4 {[%emt 0:00:31]} 30. Qa6 {[%emt 0:01:17]} Qc4 {[%emt 0:01:04]} 31. Qb7 {[%emt 0:00:59]} Bf8 {[%emt 0:02:35]} 32. Nd2 {[%emt 0:00:28]} Qc7 {[%emt 0:00:20]} 33. Qa6 {[%emt 0:00:15]} Qd7 {[%emt 0:00:34]} 34. Nc4 {[%emt 0:00:52]} Rc5 {[%emt 0:00:52]} 35. Rf1 {[%emt 0:01:47]} Nd5 {[%emt 0:02:30]} 36. Ne5 {[%emt 0:00:42]} Qd6 {[%emt 0:00:51]} 37. Qxd6 {[%emt 0:00:34]} Bxd6 {[%emt 0:00:04]} 38. Nd3 {[%emt 0:00:06]} Rc8 {[%emt 0:00:05]} 39. Rd1 {[%emt 0:00:42]} Be7 {[%emt 0:00:55]} 40. Nb5 {[%emt 0:00:40]} Nb6 {[%emt 0:01:03]} 41. e4 {[%emt 0:06:35]} Rc2 {[%emt 0:12:34]} 42. Nd4 {[%emt 0:00:06]} Rc4 {[%emt 0:00:36]} 43. Ne5 {[%emt 0:01:38]} Bf6 {[%emt 0:00:45]} 44. Nef3 {[%emt 0:04:52]} Bxd4 {[%emt 0:01:45]} 45. Nxd4 {[%emt 0:00:06]} e5 {[%emt 0:00:29]} 46. Nf3 {[%emt 0:00:08]} Rxe4 {[%emt 0:02:57]} 47. Rd8+ {[%emt 0:00:06]} Kg7 {[%emt 0:00:05]} 48. Rb8 {[%emt 0:00:09]} Nc4 {[%emt 0:01:36]} 49. Rb4 {[%emt 0:00:25]} Rg4 {[%emt 0:03:20]} 50. Rxa4 {[%emt 0:01:38]} Nd2 {[%emt 0:02:17]} 51. Nxd2 {[%emt 0:00:07]} Rxa4 {[%emt 0:00:04]} 52. Nxb3 {[%emt 0:00:16]} Rc4 {[%emt 0:02:24]} 53. Na5 {[%emt 0:00:08]} Rc5 {[%emt 0:00:12]} 54. b4 {[%emt 0:00:06]} Rc3 {[%emt 0:00:07]} 55. a4 {[%emt 0:00:28]} f6 {[%emt 0:03:52]} 56. b5 {[%emt 0:03:12]} Ra3 {[%emt 0:00:05]} 57. b6 {[%emt 0:00:09]} Rxa4 {[%emt 0:00:07]} 58. b7 {[%emt 0:00:03]} Rb4 {[%emt 0:00:05]} 59. Kf1 {[%emt 0:00:04]} Rb2 {[%emt 0:01:03]} 60. Ke1 {[%emt 0:00:38]} Kf8 {[%emt 0:01:11]} 61. Kd1 {[%emt 0:00:07]} Ke8 {[%emt 0:00:34]} 62. Kc1 {[%emt 0:00:08]} Rb5 {[%emt 0:00:12]} 63. Kd2 {[%emt 0:01:43]} Kd7 {[%emt 0:00:10]} 64. f4 {[%emt 0:00:16]} exf4 {[%emt 0:00:52]} 65. gxf4 {[%emt 0:00:04]} Kc7 {[%emt 0:00:13]} 66. Nc4 {[%emt 0:00:03]} Rxb7 {[%emt 0:00:06]} 67. f5 {[%emt 0:00:05]} gxf5 {[%emt 0:00:08]} 68. Ne3 {[%emt 0:00:03]} Rb5 {[%emt 0:00:57]} 0-1

[Event "Karel Janecek Open 2024"]
[Site "Prague"]
[Date "2024.03.04"]
[Round "6.3"]
[White "Polak, Tomas"]
[Black "Harshavardhan G B"]
[Result "1/2-1/2"]
[ECO "B13"]
[WhiteElo "2525"]
[BlackElo "2392"]
[Annotator "TA"]
[PlyCount "81"]
[EventDate "2024.02.22"]
[EventType "swiss"]
[EventCountry "CZE"]
[SourceTitle "playchess.com"]
[Source "ChessBase"]
[SourceQuality "1"]
[TimeControl "40/5400+30:1800+30"]

{[%evp 15,81,-12,-9,-10,0,0,5,-37,-13,-11,-21,-17,-12,-25,0,0,16,17,18,12,12,-18,-8,-11,0,0,0,0,20,8,31,40,44,33,70,60,76,77,82,78,91,87,86,60,58,42,68,67,72,71,81,72,68,50,45,0,0,0,36,0,0,0,12,12,12,8,8,0]} 1. Nf3 {[%emt 0:00:04]} c5 {[%emt 0:07:31]} 2. c4 {[%emt 0:00:32]} Nc6 {[%emt 0:00:19]} 3. Nc3 {[%emt 0:00:31]} g6 {[%emt 0:00:07]} 4. e3 {[%emt 0:00:33]} Nf6 {[%emt 0:00:09]} 5. d4 {[%emt 0:00:23]} cxd4 {[%emt 0:00:05]} 6. exd4 {[%emt 0:00:06]} d5 {[%emt 0:00:08]} 7. Bg5 {[%emt 0:00:32]} Be6 {[%emt 0:03:02]} 8. Bxf6 {[%emt 0:02:03]} exf6 {[%emt 0:00:08]} 9. Be2 {[%emt 0:00:27]} Bg7 {[%emt 0:06:53]} 10. O-O {[%emt 0:00:53]} O-O {[%emt 0:00:12]} 11. Qa4 {[%emt 0:07:05]} Qd7 {[%emt 0:09:48]} 12. Rad1 {[%emt 0:03:15]} a6 {[%emt 0:03:44][%cal Ob7b5]} 13. a3 {[%emt 0:14:38]} Rad8 {[%emt 0:04:33]} 14. Rfe1 {[%emt 0:05:00]} Rfe8 {[%emt 0:06:33]} 15. b4 {[%emt 0:08:39]} Bg4 {[%emt 0:17:42]} (15... dxc4 16. d5 Ne5 17. dxe6 Qxe6 18. Kf1 $18) 16. Nxd5 {[%emt 0:10:36]} f5 {[%emt 0:05:43]} (16... Nxd4 $6 17. Qxd7 Nxe2+ 18. Rxe2 Bxd7 19. Red2 $14) 17. h3 {[%emt 0:06:54]} Bh5 {[%emt 0:02:05]} 18. b5 {[%emt 0:19:40]} axb5 {[%emt 0:01:45]} 19. Qxb5 {[%emt 0:00:06]} Bxf3 {[%emt 0:02:05]} 20. Bxf3 {[%emt 0:00:24]} Rxe1+ {[%emt 0:00:15]} 21. Rxe1 {[%emt 0:00:04]} Bxd4 {[%emt 0:01:03]} 22. Rd1 {[%emt 0:02:48][%cal Od1d4]} Qd6 {[%emt 0:07:10]} (22... Qc8 $5) 23. Qxb7 {[%emt 0:02:05]} Kg7 {[%emt 0:01:12][%cal Od6c5]} ({Don't go for} 23... Qc5 $2 24. Qxc6 Bxf2+ 25. Kf1 $18) 24. Qc7 {[%emt 0:09:03] [#] Hoping for Qxd6.} Qxc7 {[%emt 0:03:05]} ({Don't blunder} 24... Qc5 $2 25. Rxd4 Qxd4 26. Qxc6 $18) 25. Nxc7 {[%emt 0:00:06]} Bb6 {[%emt 0:07:37]} 26. Rxd8 {[%emt 0:00:46]} Nxd8 $16 {[%emt 0:00:06][%mdl 4096] Endgame. KBN-KBN} 27. Nd5 {[%emt 0:00:49]} Bc5 {[%emt 0:01:34]} 28. a4 {[%emt 0:00:39]} Nc6 {[%emt 0:00:30]} 29. Kf1 {[%emt 0:02:52]} Na5 {[%emt 0:01:09]} 30. Be2 {[%emt 0:00:19]} f6 {[%emt 0:00:17]} 31. Nf4 {[%emt 0:00:51]} Kf7 {[%emt 0:00:43] Dodges Ne6} 32. Bf3 {[%emt 0:00:13]} Ke7 {[%emt 0:02:26]} 33. Bd5 {[%emt 0:00:08]} Bd6 {[%emt 0:00:18]} 34. Ne2 {[%emt 0:02:58]} Nb3 {[%emt 0:00:21]} 35. Bg8 {[%emt 0:01:13][%cal Oe2c3]} Nc5 {[%emt 0:01:33]} 36. Nc3 {[%emt 0:00:25][%cal Of1e2]} Be5 {[%emt 0:00:16]} 37. Nb5 {[%emt 0:00:44]} (37. Nd5+ $5 Kf8 38. Bxh7 $16) 37... Nxa4 {[%emt 0:00:20] The position is equal.} 38. Ke2 {[%emt 0:00:22]} (38. Bxh7 Kf7 39. Ke2 Nc5 $19) 38... Nc3+ {[%emt 0:01:01]} 39. Nxc3 {[%emt 0:00:30]} Bxc3 {[%emt 0:00:07]} 40. Kd3 {[%emt 0:00:24]} Be1 {[%emt 0:00:10]} 41. f4 {[%emt 0:04:26] Weighted Error Value: White=0.07 (flawless) /Black=0.10 (very precise) .  Inaccurate:     	White=5     	Black=3      OK:         	White=17    	Black=13} 1/2-1/2

[Event "Karel Janecek Open 2024"]
[Site "Prague"]
[Date "2024.03.04"]
[Round "6.4"]
[White "Ilamparthi A R"]
[Black "Isik, Alparslan"]
[Result "1/2-1/2"]
[ECO "B32"]
[WhiteElo "2426"]
[BlackElo "2452"]
[Annotator "TA"]
[PlyCount "71"]
[EventDate "2024.02.22"]
[EventType "swiss"]
[EventCountry "CZE"]
[SourceTitle "playchess.com"]
[Source "ChessBase"]
[SourceQuality "1"]
[TimeControl "40/5400+30:1800+30"]

{[%evp 14,71,33,20,19,31,39,41,37,16,36,24,25,7,41,-6,-6,-8,8,-66,-58,-75,-60,-54,-62,-66,0,0,0,0,0,0,-7,-7,0,0,0,0,0,0,14,12,0,0,0,0,27,16,10,0,0,0,0,0,0,0,0,0,0,-1]} 1. e4 {[%emt 0:00:02]} c5 {[%emt 0:02:37]} 2. Nf3 {[%emt 0:00:08]} Nc6 {[%emt 0:00:05]} 3. d4 {[%emt 0:00:06]} cxd4 {[%emt 0:00:07]} 4. Nxd4 {[%emt 0:00:03]} e5 {[%emt 0:00:25]} 5. Nb5 {[%emt 0:00:06]} d6 {[%emt 0:00:06]} 6. N1c3 {[%emt 0:00:59]} a6 {[%emt 0:00:28]} 7. Na3 {[%emt 0:00:02]} Be7 {[%emt 0:00:29]} 8. Nc4 {[%emt 0:00:37]} b5 {[%emt 0:00:18]} 9. Ne3 {[%emt 0:00:05]} Nf6 {[%emt 0:00:06]} 10. Bd3 {[%emt 0:00:31]} Nb4 {[%emt 0:01:29] White is slightly better.} 11. Be2 {[%emt 0:00:03]} O-O {[%emt 0:00:35][%cal Od6d5]} 12. O-O {[%emt 0:00:04]} Be6 {[%emt 0:00:15]} 13. Bf3 {[%emt 0:12:40]} Nc6 {[%emt 0:11:57]} 14. Nf5 {[%emt 0:05:28] Prevents Nd4} (14. Ncd5 $14 {is more appropriate.}) 14... Rc8 {[%emt 0:10:32]} 15. Be3 {[%emt 0:04:49]} b4 {[%emt 0:07:25]} 16. Na4 {[%emt 0:17:45]} ({Better is} 16. Nd5 $11) 16... Bxf5 $15 {[%emt 0:11:15]} 17. exf5 {[%emt 0:00:23]} e4 {[%emt 0:00:10]} 18. Be2 {[%emt 0:02:32][%cal Oa4b6]} Qa5 {[%emt 0:00:40]} 19. Nb6 {[%emt 0:06:10]} Rcd8 {[%emt 0:00:38]} (19... Rb8 $15 20. Nc4 Qxf5 21. Nxd6 Qe6) 20. a3 $11 {[%emt 0:02:32]} bxa3 {[%emt 0:05:28]} 21. Rxa3 {[%emt 0:03:03]} Qxf5 {[%emt 0:00:10]} 22. Rxa6 {[%emt 0:02:48]} d5 {[%emt 0:00:33]} 23. c3 {[%emt 0:02:20]} Bd6 {[%emt 0:09:15]} 24. Na4 {[%emt 0:14:14]} Ne5 {[%emt 0:00:28]} 25. Rxd6 {[%emt 0:00:35]} Rxd6 {[%emt 0:00:07]} 26. Bc5 {[%emt 0:00:03] A strong pair of Bishops.} Rfd8 {[%emt 0:02:49][%cal Bf8d8,Bd8d6,Bd6c6][%mdl 32]} 27. Bxd6 {[%emt 0:00:25]} Rxd6 {[%emt 0:00:06]} 28. Nc5 {[%emt 0:02:09]} h5 {[%emt 0:03:57]} 29. Nb3 {[%emt 0:06:21]} Nc6 {[%emt 0:11:37]} 30. Nd4 {[%emt 0:04:30]} Qe5 {[%emt 0:00:10] The position is equal.} 31. Nxc6 {[%emt 0:02:30]} Rxc6 {[%emt 0:00:01]} 32. Qd2 {[%emt 0:00:02]} Ng4 {[%emt 0:04:03][%csl Gg4][%cal Re5h2] [#]} 33. g3 {[%emt 0:01:44]} Rf6 {[%emt 0:00:15]} 34. Bxg4 {[%emt 0:01:51]} hxg4 {[%emt 0:00:06]} 35. Rd1 {[%emt 0:00:05]} Rd6 {[%emt 0:00:37]} 36. Qf4 {[%emt 0:07:46] Weighted Error Value: White=0.07 (flawless) /Black=0.08 (flawless) .  Mistake:       	White=2     	Black=1      Inaccurate:     	---       	Black=2      OK:         	White=18    	Black=9      Best:        	White=2     	Black=2} 1/2-1/2

[Event "Karel Janecek Open 2024"]
[Site "Prague"]
[Date "2024.03.04"]
[Round "6.5"]
[White "Safarli, Eltaj"]
[Black "Neuman, Petr"]
[Result "1/2-1/2"]
[ECO "B10"]
[WhiteElo "2604"]
[BlackElo "2398"]
[Annotator "TA"]
[PlyCount "57"]
[EventDate "2024.02.22"]
[EventType "swiss"]
[EventCountry "CZE"]
[SourceTitle "playchess.com"]
[Source "ChessBase"]
[SourceQuality "1"]
[TimeControl "40/5400+30:1800+30"]

{[%evp 9,57,-4,22,20,31,11,14,14,39,24,37,33,37,31,49,37,42,19,55,45,58,64,60,56,55,31,52,36,45,34,34,34,31,0,0,0,0,0,0,-41,-29,-64,-50,-110,-104,-117,-27,-32,-2,-9]} 1. e4 {[%emt 0:03:43]} c6 {[%emt 0:00:25]} 2. Nf3 {[%emt 0:01:18]} d5 {[%emt 0:00:08]} 3. d3 {[%emt 0:00:06]} dxe4 {[%emt 0:02:55]} 4. dxe4 {[%emt 0:00:04]} Qxd1+ {[%emt 0:00:30]} 5. Kxd1 {[%emt 0:00:05]} Bg4 {[%emt 0:05:18]} 6. Be2 {[%emt 0:00:14]} Nd7 {[%emt 0:00:28]} 7. Ne1 {[%emt 0:00:08]} Bxe2+ {[%emt 0:01:09]} 8. Kxe2 {[%emt 0:00:05]} e5 {[%emt 0:03:50]} 9. f3 {[%emt 0:02:30]} Nc5 {[%emt 0:07:38]} 10. Be3 {[%emt 0:00:14]} Nf6 {[%emt 0:00:09]} 11. a4 {[%emt 0:01:04][%cal Ba2a4,Ba4a5][%mdl 32]} Nfd7 {[%emt 0:04:06]} 12. Nd2 {[%emt 0:00:41]} f6 {[%emt 0:02:55]} 13. a5 {[%emt 0:01:30]} Bd6 {[%emt 0:04:14]} 14. c3 {[%emt 0:04:02]} Ke7 {[%emt 0:03:14]} 15. b4 {[%emt 0:00:31]} Ne6 {[%emt 0:00:08]} 16. Nd3 {[%emt 0:00:16]} b6 {[%emt 0:11:58]} 17. Nb3 {[%emt 0:02:55]} Rhc8 {[%emt 0:03:33]} 18. Rhd1 {[%emt 0:08:14]} c5 {[%emt 0:01:30]} 19. bxc5 {[%emt 0:01:03]} Ndxc5 {[%emt 0:04:59]} 20. Nbxc5 {[%emt 0:00:15]} Bxc5 {[%emt 0:00:52]} 21. Bxc5+ {[%emt 0:13:18]} bxc5 {[%emt 0:00:30]} 22. Rdb1 {[%emt 0:01:26]} Rab8 {[%emt 0:01:07] Repels Rb7+} 23. g3 {[%emt 0:04:47]} Kd7 {[%emt 0:04:02]} 24. Ne1 {[%emt 0:04:49]} c4 {[%emt 0:04:20]} 25. Nc2 {[%emt 0:02:58]} Rb3 {[%emt 0:00:26]} 26. Rd1+ {[%emt 0:04:09] [#]} (26. Kd2 $1 $15) 26... Ke8 $1 $17 {[%emt 0:01:49]} 27. Ra3 {[%emt 0:00:05]} Rb2 {[%emt 0:09:39]} (27... Nc5 $17 {...Rb2 is the strong threat.} 28. Ke3 Rd8 29. Rxd8+ Kxd8) 28. Rd2 $11 {[%emt 0:00:52]} Rd8 {[%emt 0:00:09] With the idea ...Ng5.} 29. Ra4 {[%emt 0:03:42] Weighted Error Value: White=0.13 (very precise) /Black=0.15 (very precise) .  Mistake:       	White=1     	Black=1      Inaccurate:     	White=3     	Black=2      OK:         	White=4     	Black=6      Best:        	White=2     	Black=2      Strong:       	---       	Black=1} 1/2-1/2

[Event "Karel Janecek Open 2024"]
[Site "Prague"]
[Date "2024.03.04"]
[Round "6.6"]
[White "Bernadskiy, Vitaliy"]
[Black "Kalogeris, Ioannis"]
[Result "0-1"]
[ECO "C78"]
[WhiteElo "2566"]
[BlackElo "2427"]
[Annotator "RC"]
[PlyCount "112"]
[EventDate "2024.02.22"]
[EventType "swiss"]
[EventCountry "CZE"]
[SourceTitle "playchess.com"]
[Source "ChessBase"]
[SourceQuality "1"]
[TimeControl "40/5400+30:1800+30"]

1. e4 {[%emt 0:00:02]} e5 {[%emt 0:04:29]} 2. Nf3 {[%emt 0:00:09]} Nc6 {[%emt 0:00:06]} 3. Bb5 {[%emt 0:00:02]} a6 {[%emt 0:00:25]} 4. Ba4 {[%emt 0:00:04]} Nf6 {[%emt 0:00:07]} 5. O-O {[%emt 0:00:04]} b5 {[%emt 0:00:11]} 6. Bb3 {[%emt 0:00:03]} Bc5 {[%emt 0:00:15]} 7. a4 {[%emt 0:00:43]} Rb8 {[%emt 0:00:34]} 8. axb5 {[%emt 0:00:38]} axb5 {[%emt 0:00:09]} 9. Nxe5 {[%emt 0:00:04]} Nxe5 {[%emt 0:04:44]} 10. d4 {[%emt 0:00:04]} Bxd4 {[%emt 0:00:32]} 11. Qxd4 {[%emt 0:00:04]} d6 {[%emt 0:01:03]} 12. f3 {[%emt 0:00:05]} c5 {[%emt 0:06:20]} 13. Qf2 {[%emt 0:00:35]} O-O {[%emt 0:04:48]} 14. Bg5 {[%emt 0:01:45]} h6 {[%emt 0:00:52]} 15. Bh4 {[%emt 0:00:47]} Be6 {[%emt 0:14:42]} 16. Nc3 {[%emt 0:08:15]} c4 {[%emt 0:07:29]} 17. Ba2 {[%emt 0:00:53]} b4 {[%emt 0:00:05]} 18. Ne2 {[%emt 0:02:45]} Ra8 {[%emt 0:14:59]} 19. Nd4 {[%emt 0:00:40]} g5 {[%emt 0:06:08]} 20. Bg3 {[%emt 0:01:06]} Qb6 {[%emt 0:04:00]} 21. Nxe6 {[%emt 0:12:54]} Qxf2+ {[%emt 0:00:39]} 22. Rxf2 {[%emt 0:08:26]} fxe6 {[%emt 0:01:06]} 23. Bxe5 {[%emt 0:01:44]} dxe5 {[%emt 0:00:34]} 24. Rff1 {[%emt 0:00:04]} b3 {[%emt 0:01:05]} 25. cxb3 {[%emt 0:01:54]} Ra7 {[%emt 0:00:34]} 26. bxc4 {[%emt 0:05:06]} Rfa8 {[%emt 0:00:30]} 27. Kf2 {[%emt 0:02:06]} Rxa2 {[%emt 0:02:39]} 28. Rxa2 {[%emt 0:00:18]} Rxa2 {[%emt 0:00:02]} 29. Rb1 {[%emt 0:00:05]} Kf7 {[%emt 0:04:45]} 30. Ke3 {[%emt 0:00:23]} Nd7 {[%emt 0:02:27]} 31. Kd3 {[%emt 0:01:46]} Ke7 {[%emt 0:00:34]} 32. Kc3 {[%emt 0:00:05]} Kd6 {[%emt 0:03:18]} 33. h4 {[%emt 0:00:33]} g4 {[%emt 0:03:02]} 34. Rd1+ {[%emt 0:00:35]} Ke7 {[%emt 0:00:50]} 35. fxg4 {[%emt 0:02:03]} Nf6 {[%emt 0:00:45]} 36. Re1 {[%emt 0:00:02]} Nxg4 {[%emt 0:00:34]} 37. c5 {[%emt 0:00:14]} h5 {[%emt 0:02:05]} 38. Kb3 {[%emt 0:07:50]} Ra8 {[%emt 0:00:17]} 39. Kc4 {[%emt 0:00:06]} Rd8 {[%emt 0:01:45]} 40. c6 {[%emt 0:07:34]} Rd4+ {[%emt 0:04:18]} 41. Kb5 {[%emt 0:30:12]} Nf6 {[%emt 0:32:57]} 42. c7 {[%emt 0:10:50]} Kd7 {[%emt 0:00:36]} 43. Rc1 {[%emt 0:00:04]} Kc8 {[%emt 0:00:16]} 44. Rc6 {[%emt 0:02:26]} Ne8 {[%emt 0:01:14]} 45. Kb6 {[%emt 0:00:17]} Rxe4 {[%emt 0:00:00]} 46. Rxe6 {[%emt 0:00:00]} Nxc7 {[%emt 0:00:00]} 47. Rh6 {[%emt 0:00:00]} Rxh4 {[%emt 0:00:00]} 48. Kc6 {[%emt 0:00:00]} Kd8 {[%emt 0:00:00]} 49. g4 {[%emt 0:00:00]} Rxg4 {[%emt 0:00:00]} 50. Rxh5 {[%emt 0:00:00]} Rg6+ {[%emt 0:00:00]} 51. Kc5 {[%emt 0:00:00]} Ne6+ {[%emt 0:00:00]} 52. Kc4 {[%emt 0:00:00]} Rg4+ {[%emt 0:00:00]} 53. Kc3 {[%emt 0:00:00]} Ng5 {[%emt 0:00:00]} 54. b4 {[%emt 0:00:00]} Kc7 {[%emt 0:00:00]} 55. Rh8 {[%emt 0:00:00]} Nf7 {[%emt 0:00:00]} 56. Rh5 {[%emt 0:00:00]} Kc6 {[%emt 0:00:00]} 0-1

[Event "Karel Janecek Open 2024"]
[Site "Prague"]
[Date "2024.03.04"]
[Round "6.7"]
[White "Muthaiah AL"]
[Black "Amar, Elham"]
[Result "0-1"]
[ECO "D36"]
[WhiteElo "2464"]
[BlackElo "2555"]
[Annotator "TA"]
[PlyCount "96"]
[EventDate "2024.02.22"]
[EventType "swiss"]
[EventCountry "CZE"]
[SourceTitle "playchess.com"]
[Source "ChessBase"]
[SourceQuality "1"]
[TimeControl "40/5400+30:1800+30"]

{[%evp 26,96,0,0,0,0,0,0,8,-19,-24,-20,-20,-22,-27,-22,-13,-18,0,0,0,-7,0,0,0,-25,-26,-31,-43,-86,-80,-120,-25,-42,12,11,14,0,0,0,0,-26,-31,-157,-148,-187,-185,-181,-184,-304,-286,-285,-254,-322,-298,-464,-469,-1008,-1008,-977,-962,-29975,-29975,-29976,-29974,-29979,-29975,-29981,-29982,-29982,-29983,-29984,-29985]} 1. d4 {[%emt 0:06:45]} Nf6 {[%emt 0:01:40]} 2. c4 {[%emt 0:00:30]} e6 {[%emt 0:00:06]} 3. Nc3 {[%emt 0:00:21]} d5 {[%emt 0:00:27]} 4. cxd5 {[%emt 0:00:30]} exd5 {[%emt 0:00:08]} 5. Bg5 {[%emt 0:00:57]} c6 {[%emt 0:01:29]} 6. e3 {[%emt 0:00:31]} Nbd7 {[%emt 0:04:02]} 7. Bd3 {[%emt 0:01:42]} Be7 {[%emt 0:00:21]} 8. Nge2 {[%emt 0:02:17]} Nf8 {[%emt 0:00:32]} 9. Qc2 {[%emt 0:05:18]} Ne6 {[%emt 0:00:12]} 10. Bh4 {[%emt 0:00:46]} g6 {[%emt 0:00:07]} 11. O-O {[%emt 0:01:13]} O-O {[%emt 0:00:09]} 12. f3 {[%emt 0:01:19]} b5 $1 {[%emt 0:01:15][%mdl 4] is recently more successful than 12...b6. D36: Queen's Gambit Declined: Exchange Variation: Main line (5 Bg5 c6 6 Qc2).} 13. Bf2 {[%emt 0:07:13]} Bd7 {[%emt 0:12:21]} 14. Kh1 {[%emt 0:07:14]} Rc8 {[%emt 0:07:30]} 15. a3 $146 {[%emt 0:04:12]} ({Predecessor:} 15. e4 b4 16. Na4 c5 17. Nxc5 Nxc5 18. dxc5 dxe4 19. Bxe4 Nxe4 20. fxe4 Bb5 21. Rfd1 {0-1 Dzagnidze,N (2531)-Koneru,H (2586) Speed Chess (Women) blitz 2022 (1.39)}) 15... a5 {[%emt 0:09:26]} 16. Rad1 {[%emt 0:12:05]} Qe8 {[%emt 0:30:07]} 17. Nf4 {[%emt 0:14:16]} Nxf4 {[%emt 0:05:01]} 18. exf4 {[%emt 0:01:11]} Nh5 {[%emt 0:00:03]} 19. g3 {[%emt 0:07:08]} Ng7 {[%emt 0:01:21]} 20. Rfe1 {[%emt 0:02:31]} Qd8 {[%emt 0:00:53]} 21. a4 {[%emt 0:03:47]} bxa4 {[%emt 0:08:04]} 22. Nxa4 {[%emt 0:02:59]} Bb4 {[%emt 0:00:05]} 23. Re2 {[%emt 0:01:44]} Bf5 {[%emt 0:00:39]} 24. Be1 {[%emt 0:03:40]} Bxe1 {[%emt 0:06:17]} 25. Rexe1 {[%emt 0:02:53]} Re8 {[%emt 0:02:45]} 26. Qc3 {[%emt 0:06:50]} Rxe1+ {[%emt 0:02:16]} 27. Qxe1 {[%emt 0:00:10]} Rb8 {[%emt 0:00:59]} 28. Qc3 {[%emt 0:01:36]} Qe7 {[%emt 0:00:46]} (28... Bxd3 $17 29. Rxd3 Qe8) 29. Bf1 $1 $11 {[%emt 0:00:45]} Re8 {[%emt 0:04:29]} ({Better is} 29... Qb7 $15) 30. Nc5 $11 {[%emt 0:01:00]} h5 {[%emt 0:01:20]} 31. Kg1 {[%emt 0:01:45]} Bc8 {[%emt 0:00:28]} 32. Rd2 {[%emt 0:00:34]} Qe1 {[%emt 0:00:24]} 33. Rc2 {[%emt 0:00:42]} Nf5 {[%emt 0:00:31]} 34. Qxe1 {[%emt 0:00:27]} (34. Rc1 $15 Qe7 35. Ra1) 34... Rxe1 $17 {[%emt 0:00:01]} 35. Rd2 {[%emt 0:00:15] [#]} Nxd4 $1 {[%emt 0:00:45]} 36. Kf2 {[%emt 0:00:28]} (36. Rxd4 $2 Bh3 37. Kf2 Rxf1+ 38. Ke3 Re1+ 39. Kf2 Rh1 $19) 36... Nxf3 {[%emt 0:00:44]} 37. Rc2 {[%emt 0:00:43]} (37. Rd3 {might work better.} Rc1 (37... Nxh2 $2 38. Kxe1 Ng4 39. Ra3 $18) 38. Nb3 Rxf1+ 39. Kxf1) 37... Rb1 $19 {[%emt 0:00:34]} (37... Nxh2 $2 38. Kxe1 Nxf1 39. Kxf1 $18) 38. Kxf3 {[%emt 0:00:20]} Rxf1+ {[%emt 0:00:03]} 39. Ke3 {[%emt 0:00:10]} Bf5 {[%emt 0:00:38]} 40. Rc3 {[%emt 0:00:43]} (40. Rd2 {is a better defense.}) 40... Rd1 $19 {[%emt 0:00:55]} 41. Nb3 {[%emt 0:04:08]} (41. Ra3 $142 d4+ 42. Kf3) 41... a4 $19 {[%emt 0:01:25]} 42. Nd4 {[%emt 0:00:14]} c5 {[%emt 0:00:37]} (42... Re1+ 43. Kd2 Rh1 44. h4 $17) 43. Nxf5 {[%emt 0:03:12]} d4+ {[%emt 0:00:09]} ({Worse is} 43... gxf5 44. Rxc5 h4 45. gxh4 $16) 44. Ke2 {[%emt 0:00:12]} dxc3 {[%emt 0:00:10]} 45. Kxd1 {[%emt 0:00:10]} cxb2 {[%emt 0:00:21]} ({Inferior is} 45... gxf5 46. bxc3 h4 47. Kc2 $11) 46. Kc2 {[%emt 0:00:07]} gxf5 {[%emt 0:00:05]} 47. Kxb2 {[%emt 0:00:07]} c4 {[%emt 0:00:36]} 48. Ka3 {[%emt 0:00:30] [#]} c3 $1 {[%emt 0:00:04]} 0-1